fUSD/lending_fUSD_20260406
["ID","MTS","AMOUNT","RATE_DAILY","PERIOD"]
[419889527,1775471149065,-300.0,8.598e-05,2]
[419889528,1775471149095,-300.0,8.598e-05,2]
[419889529,1775471149127,-1200.0,8.598e-05,2]
[419889530,1775471149158,-273.0,8.598e-05,2]
[419889531,1775471149189,-85.76603138,8.599e-05,2]
[419889532,1775471149466,-4782.47793724,8.599e-05,2]
[419889533,1775471152708,-9288.53612707,8.599e-05,2]
[419889534,1775471153005,-10000.01,8.599e-05,2]
[419889535,1775471156667,-10000.01,8.599e-05,2]
[419889538,1775471177632,200.0,8.5e-05,2]
[419889540,1775471180865,150.0,1e-08,15]
[419889549,1775471432357,-273.0,8.598e-05,2]
[419889551,1775471432368,-250.0,8.599e-05,2]
[419889552,1775471432377,-1178.50093323,8.599e-05,2]
[419889553,1775471432387,-250.0,8.661e-05,2]
[419889554,1775471432398,-150.0,8.781e-05,2]
[419889556,1775471432409,-150.0,8.781e-05,2]
[419889557,1775471432419,-223.33,8.827e-05,2]
[419889558,1775471432429,-1178.50093321,8.876e-05,2]
[419889559,1775471432439,-793.77164917,9.153e-05,2]
[419889560,1775471432451,-384.72928404,9.153e-05,2]
[419889561,1775471432461,-223.33,9.154e-05,2]
[419889562,1775471432471,-300.0,9.456e-05,2]
[419889563,1775471432482,-266.0,9.457e-05,2]
[419889564,1775471432491,-300.0,9.457e-05,2]
[419889565,1775471432502,-1200.0,9.457e-05,2]
[419889566,1775471432512,-250.0,9.458e-05,2]
[419889567,1775471432522,-223.33,9.48e-05,2]
[419889568,1775471432531,-903.0,9.485e-05,2]
[419889569,1775471432541,-150.0,9.5e-05,2]
[419889570,1775471432551,-703.0,9.596e-05,2]
[419889571,1775471432561,-688.0,9.601e-05,2]
[419889572,1775471432571,-310.0,9.601e-05,2]
[419889573,1775471432581,-369.0,9.62e-05,2]
[419889574,1775471432591,-223.33,9.807e-05,2]
[419889575,1775471432601,-150.0,9.85e-05,2]
[419889576,1775471432611,-251.03397785,9.948e-05,2]
[419889577,1775471432621,-228.0,9.948e-05,2]
[419889578,1775471432632,-1600.0,9.97e-05,2]
[419889579,1775471432642,-9109.65,9.974e-05,2]
[419889580,1775471432652,-150.0,9.999e-05,2]
[419889581,1775471432662,-500.0,0.0001,2]
[419889582,1775471432673,-500.0,0.0001,2]
[419889583,1775471432682,-500.0,0.0001,2]
[419889584,1775471432692,-500.0,0.0001,2]
[419889585,1775471432703,-200.0,0.0001,2]
[419889586,1775471432712,-151.0,0.0001,2]
[419889587,1775471432723,-151.0,0.0001,2]
[419889588,1775471432733,-151.0,0.0001,2]
[419889589,1775471432743,-151.0,0.0001,2]
[419889590,1775471432753,-151.0,0.0001,2]
[419889591,1775471432763,-162.6917032,0.0001,2]
[419889592,1775471432773,-151.0,0.0001,2]
[419889593,1775471432783,-151.0,0.0001,2]
[419889594,1775471432793,-151.0,0.0001,2]
[419889595,1775471432802,-151.0,0.0001,2]
[419889596,1775471432812,-151.0,0.0001,2]
[419889597,1775471432822,-151.0,0.0001,2]
[419889598,1775471432832,-151.0,0.0001,2]
[419889599,1775471432841,-629.47078978,0.0001,2]
[419889600,1775471432851,-151.0,0.0001,2]
[419889601,1775471432862,-151.0,0.0001,2]
[419889602,1775471432872,-249.82925033,0.0001,2]
[419889603,1775471432882,-151.0,0.0001,2]
[419889604,1775471432892,-500.0,0.0001,2]
[419889605,1775471432902,-500.95520336,0.0001,2]
[419889606,1775471432912,-500.25334159,0.0001,2]
[419889607,1775471432922,-500.0,0.0001,2]
[419889608,1775471432932,-500.0,0.0001,2]
[419889609,1775471432943,-500.5883938,0.0001,2]
[419889610,1775471432952,-500.0,0.0001,2]
[419889611,1775471432962,-609.735,0.0001,2]
[419889612,1775471432972,-500.0,0.0001,2]
[419889613,1775471432983,-500.27586957,0.0001,2]
[419889614,1775471432993,-500.0,0.0001,2]
[419889615,1775471433003,-503.42744374,0.0001,2]
[419889616,1775471433013,-500.0,0.0001,2]
[419889617,1775471433024,-500.0,0.0001,2]
[419889618,1775471433034,-500.0,0.0001,2]
[419889619,1775471433045,-1109.74589812,0.0001,2]
[419889620,1775471433055,-250.0,0.0001012,2]
[419889621,1775471433065,-223.33,0.00010134,2]
[419889622,1775471433075,-500.0,0.00010274,2]
[419889623,1775471433085,-249.29,0.0001036,2]
[419889624,1775471433095,-2000.0,0.00010397,2]
[419889625,1775471433105,-420.0,0.00010402,2]
[419889626,1775471433116,-1680.0,0.00010402,2]
[419889627,1775471433125,-301.0,0.00010402,2]
[419889628,1775471433136,-200.0,0.00010408,2]
[419889629,1775471433146,-223.33,0.00010461,2]
[419889630,1775471433156,-1000.0,0.00010547,2]
[419889631,1775471433168,-500.0,0.00010548,2]
[419889632,1775471433178,-1000.0,0.00010548,2]
[419889633,1775471433187,-1000.0,0.00010548,2]
[419889634,1775471433197,-1000.0,0.00010548,2]
[419889635,1775471433207,-1000.0,0.00010548,2]
[419889636,1775471433217,-1000.0,0.00010548,2]
[419889637,1775471433227,-704.26825693,0.00010548,2]
[419889638,1775471433237,-245.54106376,0.00010548,2]
[419889639,1775471433247,-308.57923412,0.00010548,2]
[419889640,1775471433257,-200.0,0.00010548,2]
[419889641,1775471433267,-223.33,0.00010788,2]
[419889642,1775471433278,-500.0,0.00010822,2]
[419889643,1775471433287,-167.331,0.000109,2]
[419889644,1775471433298,-500.0,0.00010959,2]
[419889645,1775471433307,-218.50620964,0.00010959,2]
[419889646,1775471433317,-1500.0,0.00011096,2]
[419889647,1775471433327,-1159.22316949,0.00011096,2]
[419889648,1775471433337,-1500.0,0.00011096,2]
[419889649,1775471433347,-1544.24672784,0.00011096,2]
[419889650,1775471433357,-200.0,0.00011096,2]
[419889651,1775471433367,-223.33,0.00011115,2]
[419889652,1775471433377,-1000.0,0.00011183,2]
[419889653,1775471433387,-219.26,0.00011184,2]
[419889654,1775471433398,-1600.0,0.00011217,2]
[419889655,1775471433408,-223.33,0.00011442,2]
[419889656,1775471433419,-587.0,0.00011443,2]
[419889657,1775471433429,-2351.0,0.00011443,2]
[419889658,1775471433439,-500.0,0.00011479,2]
[419889659,1775471433450,-1413.91,0.00011507,2]
[419889660,1775471433460,-1500.0,0.00011644,2]
[419889661,1775471433470,-2000.0,0.00011644,2]
[419889662,1775471433480,-204.31990126,0.00011644,2]
[419889663,1775471433491,-500.0,0.00011652,2]
[419889664,1775471433502,-500.0,0.00011652,2]
[419889665,1775471433512,-500.0,0.00011652,2]
[419889666,1775471433522,-500.0,0.00011652,2]
[419889667,1775471433533,-500.0,0.00011652,2]
[419889668,1775471433542,-500.0,0.00011652,2]
[419889669,1775471433553,-500.0,0.00011652,2]
[419889670,1775471433563,-500.0,0.00011652,2]
[419889671,1775471433574,-500.0,0.00011652,2]
[419889672,1775471433583,-236.26982686,0.00011652,2]
[419889673,1775471433593,-2000.0,0.00011697,2]
[419889674,1775471433603,-223.33,0.00011769,2]
[419889675,1775471433613,-500.0,0.00012027,2]
[419889676,1775471433623,-1731.72,0.00012055,2]
[419889677,1775471433633,-150.99,0.00012087,2]
[419889678,1775471433642,-9999.99,0.00012087,2]
[419889679,1775471433654,-223.33,0.00012096,2]
[419889680,1775471433664,-186.6644,0.000123,2]
[419889681,1775471433674,-223.33,0.00012423,2]
[419889682,1775471433684,-1209.06,0.00012423,2]
[419889683,1775471433694,-150.0,0.00012423,2]
[419889684,1775471433704,-162.07,0.00012423,2]
[419889685,1775471433713,-590.0,0.00012438,2]
[419889686,1775471433724,-1600.0,0.00012463,2]
[419889687,1775471433734,-1230.58,0.00012522,2]
[419889688,1775471433744,-823.0,0.00012587,2]
[419889689,1775471433754,-3292.0,0.00012587,2]
[419889690,1775471433764,-300.0,0.000126,4]
[419889691,1775471433774,-194.18662975,0.00012689,2]
[419889692,1775471433784,-500.0,0.00012698,2]
[419889693,1775471433794,-307.5318218,0.00012698,2]
[419889694,1775471433805,-528.63706172,0.00012698,2]
[419889695,1775471433814,-410.12329163,0.00012698,2]
[419889696,1775471433824,-360.48562963,0.00012698,2]
[419889697,1775471433834,-512.24499706,0.00012698,2]
[419889698,1775471433844,-501.86070028,0.00012698,2]
[419889699,1775471433854,-373.47016016,0.00012698,2]
[419889700,1775471433869,-126.52983984,0.00012698,2]
[419889701,1775471433879,-588.78158086,0.00012698,2]
[419889702,1775471433889,-166.55707586,0.00012698,2]
[419889703,1775471433986,-333.44292414,0.00012698,2]
[419889704,1775471433996,-455.61867255,0.00012698,2]
[419889705,1775471434330,-44.38132745,0.00012698,2]
[419889706,1775471434384,-312.61304999,0.00012698,2]
[419889707,1775471434400,-272.91161774,0.00012698,2]
[419889708,1775471440831,-221.764327,0.00012276,2]
[419889709,1775471440842,-227.08838226,0.00012698,2]
[419889710,1775471440853,-500.0,0.00012698,2]
[419889711,1775471440863,-500.0,0.00012698,2]
[419889712,1775471440873,-3170.49073871,0.00012698,2]
[419889713,1775471440883,-3170.49073871,0.00012698,2]
[419889714,1775471440893,-3170.49073871,0.00012698,2]
[419889715,1775471440903,-3170.49073871,0.00012698,2]
[419889716,1775471440913,-3170.49073871,0.00012698,2]
[419889717,1775471440923,-3170.49073871,0.00012698,2]
[419889718,1775471440933,-3170.49073871,0.00012698,2]
[419889719,1775471440943,-3170.49073871,0.00012698,2]
[419889720,1775471440953,-3170.49073871,0.00012698,2]
[419889721,1775471440963,-3170.49073871,0.00012698,2]
[419889722,1775471440973,-3170.49073871,0.00012698,2]
[419889723,1775471440983,-3170.49073871,0.00012698,2]
[419889724,1775471440993,-3170.49073871,0.00012698,2]
[419889725,1775471441003,-3170.49073871,0.00012698,2]
[419889726,1775471441013,-3170.49073871,0.00012698,2]
[419889727,1775471441023,-3170.49073871,0.00012698,2]
[419889728,1775471441033,-3170.49073871,0.00012698,2]
[419889729,1775471441044,-3170.49073871,0.00012698,2]
[419889730,1775471441054,-3170.49073871,0.00012698,2]
[419889731,1775471441064,-3170.49073871,0.00012698,2]
[419889732,1775471441074,-3170.49073871,0.00012698,2]
[419889733,1775471441084,-3170.49073871,0.00012698,2]
[419889734,1775471441094,-3170.49073871,0.00012698,2]
[419889735,1775471441105,-3170.49073871,0.00012698,2]
[419889736,1775471441114,-3170.49073871,0.00012698,2]
[419889737,1775471441125,-3170.49073871,0.00012698,2]
[419889738,1775471441135,-3170.49073871,0.00012698,2]
[419889739,1775471441145,-3170.49073871,0.00012698,2]
[419889740,1775471441156,-3170.49073871,0.00012698,2]
[419889741,1775471441167,-3170.49073871,0.00012698,2]
[419889742,1775471441177,-3170.49073871,0.00012698,2]
[419889743,1775471441187,-3170.49073871,0.00012698,2]
[419889744,1775471441197,-3170.49073871,0.00012698,2]
[419889745,1775471441208,-3170.49073871,0.00012698,2]
[419889746,1775471441219,-3170.49073871,0.00012698,2]
[419889747,1775471441229,-3170.49073871,0.00012698,2]
[419889748,1775471441239,-3170.49073871,0.00012698,2]
[419889749,1775471441250,-3170.49073871,0.00012698,2]
[419889750,1775471441260,-3170.49073871,0.00012698,2]
[419889751,1775471441271,-3170.49073871,0.00012698,2]
[419889752,1775471441281,-3170.49073871,0.00012698,2]
[419889753,1775471441291,-3170.49073871,0.00012698,2]
[419889754,1775471441301,-3170.49073871,0.00012698,2]
[419889755,1775471441312,-3170.49073871,0.00012698,2]
[419889756,1775471441323,-3170.49073871,0.00012698,2]
[419889757,1775471441333,-3170.49073871,0.00012698,2]
[419889758,1775471441343,-3170.49073871,0.00012698,2]
[419889759,1775471441354,-3170.49073871,0.00012698,2]
[419889760,1775471441364,-3166.62915841,0.00012698,2]
[419889761,1775471441375,-3166.62915841,0.00012698,2]
[419889762,1775471441385,-3166.62915841,0.00012698,2]
[419889763,1775471441394,-3166.62915841,0.00012698,2]
[419889764,1775471441404,-3166.62915841,0.00012698,2]
[419889765,1775471441415,-3166.62915841,0.00012698,2]
[419889766,1775471441425,-3166.62915841,0.00012698,2]
[419889767,1775471441435,-3166.62915841,0.00012698,2]
[419889768,1775471441445,-3166.62915841,0.00012698,2]
[419889769,1775471441455,-3166.62915841,0.00012698,2]
[419889770,1775471441466,-3166.62915841,0.00012698,2]
[419889771,1775471441476,-3166.62915841,0.00012698,2]
[419889772,1775471441486,-3166.62915841,0.00012698,2]
[419889773,1775471441496,-3166.62915841,0.00012698,2]
[419889774,1775471441506,-3166.62915841,0.00012698,2]
[419889776,1775471441516,-3166.62915841,0.00012698,2]
[419889778,1775471441527,-3166.62915841,0.00012698,2]
[419889780,1775471441537,-3166.62915841,0.00012698,2]
[419889782,1775471441548,-3166.62915841,0.00012698,2]
[419889784,1775471441558,-3166.62915841,0.00012698,2]
[419889786,1775471441569,-3166.62915841,0.00012698,2]
[419889788,1775471441579,-3166.62915841,0.00012698,2]
[419889790,1775471441590,-3166.62915841,0.00012698,2]
[419889792,1775471441599,-3166.62915841,0.00012698,2]
[419889794,1775471441610,-3166.62915841,0.00012698,2]
[419889796,1775471441620,-3166.62915841,0.00012698,2]
[419889798,1775471441630,-3166.62915841,0.00012698,2]
[419889801,1775471441641,-3166.62915841,0.00012698,2]
[419889804,1775471441651,-3166.62915841,0.00012698,2]
[419889806,1775471441663,-3166.62915841,0.00012698,2]
[419889809,1775471441674,-3166.62915841,0.00012698,2]
[419889810,1775471441684,-3222.12306684,0.00012698,2]
[419889811,1775471441695,-3222.12306684,0.00012698,2]
[419889812,1775471441705,-3222.12306684,0.00012698,2]
[419889813,1775471441715,-3222.12306684,0.00012698,2]
[419889814,1775471441725,-3222.12306684,0.00012698,2]
[419889815,1775471441736,-3222.12306684,0.00012698,2]
[419889816,1775471441746,-3222.12306684,0.00012698,2]
[419889817,1775471441756,-3222.12306684,0.00012698,2]
[419889818,1775471441767,-3222.12306684,0.00012698,2]
[419889819,1775471441777,-3222.12306684,0.00012698,2]
[419889820,1775471441788,-500.0,0.00012698,2]
[419889821,1775471441798,-500.0,0.00012698,2]
[419889822,1775471441807,-500.0,0.00012698,2]
[419889823,1775471441818,-519.93360001,0.00012698,2]
[419889824,1775471441827,-500.0,0.00012698,2]
[419889825,1775471441837,-500.0,0.00012698,2]
[419889826,1775471441848,-500.0,0.00012698,2]
[419889827,1775471441858,-500.0,0.00012698,2]
[419889828,1775471441869,-500.0,0.00012698,2]
[419889829,1775471441879,-500.0,0.00012698,2]
[419889830,1775471441890,-500.0,0.00012698,2]
[419889831,1775471441900,-500.0,0.00012698,2]
[419889832,1775471441911,-500.0,0.00012698,2]
[419889833,1775471441921,-500.0,0.00012698,2]
[419889834,1775471441931,-483.36103957,0.00012698,2]
[419889835,1775471441941,-500.0,0.00012698,2]
[419889836,1775471441952,-500.0,0.00012698,2]
[419889837,1775471441962,-296.370449,0.00012698,2]
[419889838,1775471441973,-500.0,0.00012698,2]
[419889839,1775471441983,-500.0,0.00012698,2]
[419889840,1775471441993,-500.0,0.00012698,2]
[419889841,1775471442003,-500.0,0.00012698,2]
[419889842,1775471442014,-500.0,0.00012698,2]
[419889843,1775471442024,-500.0,0.00012698,2]
[419889844,1775471442035,-650.0,0.00012698,2]
[419889845,1775471442045,-500.0,0.00012698,2]
[419889846,1775471442055,-500.0,0.00012698,2]
[419889847,1775471442065,-500.0,0.00012698,2]
[419889848,1775471442077,-23260.03071351,0.00012698,2]
[419889849,1775471442087,-1500000.0,0.00012699,2]
[419889850,1775471442097,-600.0,0.000127,4]
[419889851,1775471442107,-150.0,0.000127,2]
[419889852,1775471442117,-343.905378,0.0001274,2]
[419889853,1775471442128,-751.085362,0.0001274,2]
[419889854,1775471442138,-432.230317,0.0001274,2]
[419889855,1775471442148,-12465.25434085,0.00012773,2]
[419889856,1775471442160,-4151.2258,0.00012791,2]
[419889857,1775471442170,-92778.5261,0.00012791,2]
[419889858,1775471442181,-4012.1343,0.00012791,2]
[419889859,1775471442192,-864.8342,0.00012796,2]
[419889860,1775471442202,-157.58448152,0.00012799,2]
[419889861,1775471442213,-198.48074007,0.00012799,2]
[419889862,1775471442223,-1000.0,0.000128,4]
[419889863,1775471442234,-900.0,0.000128,4]
[419889864,1775471442245,-145869.4602841,0.00012813,2]
[419889865,1775471442254,-25975.1856119,0.00012813,2]
[419889866,1775471442265,-921.270949,0.00012858,2]
[419889867,1775471442275,-177.480132,0.00012867,2]
[419889868,1775471442285,-188.591823,0.00012867,2]
[419889869,1775471442295,-262.274957,0.00012867,2]
[419889870,1775471442305,-9317.72896724,0.0001287,2]
[419889871,1775471442316,-500.0,0.00012873,2]
[419889872,1775471442326,-265.23387832,0.00012873,2]
[419889873,1775471442336,-151.0,0.00012894,2]
[419889874,1775471442346,-161.604585,0.00012896,2]
[419889875,1775471442356,-161.604585,0.00012896,2]
[419889876,1775471442367,-925.09,0.00012896,2]
[419889877,1775471442377,-219412.01803066,0.00012899,2]
[419889878,1775471442454,-68000.00000009,0.00012899,2]
[419889879,1775471442467,-1335.68020852,0.00012899,2]
[419889880,1775471442482,-331.15290187,0.00012899,2]
[419889881,1775471442519,-883.79348644,0.00012899,2]
[419889882,1775471442535,-3415.38041526,0.00012899,2]
[419889914,1775471443205,-442.53324838,0.00012899,2]
[419889915,1775471443218,-25454.86008501,0.00012899,2]
[419889916,1775471443526,-901.48698902,0.00012899,2]
[419889917,1775471443550,-108281.18996917,0.00012899,2]
[419889918,1775471443562,-20246.63341163,0.00012899,2]
[419889919,1775471443575,-2818.48692708,0.00012899,2]
[419889920,1775471443588,-2851.09784737,0.00012899,2]
[419889932,1775471446137,-145061.7185795,0.00012899,2]
[419889933,1775471446147,-11722.1695,0.00012899,2]
[419889934,1775471446157,-1000.0,0.00012899,2]
[419889935,1775471446167,-2100.0,0.000129,4]
[419889936,1775471446177,-1200.0,0.000129,4]
[419889937,1775471446188,-8727.49610347,0.000129,2]
[419889938,1775471446198,-500.0,0.00012973,2]
[419889939,1775471446207,-2000.0,0.00012996,2]
[419889940,1775471446218,-151.0,0.00012997,2]
[419889941,1775471446227,-151.0,0.00012997,2]
[419889942,1775471446238,-151.0,0.00012997,2]
[419889943,1775471446248,-151.0,0.00013,2]
[419889944,1775471446258,-151.0,0.00013,2]
[419889945,1775471446268,-2830.4693875,0.00013,2]
[419889946,1775471446278,-39964.2141956,0.00013,2]
[419889947,1775471446288,-200.0,0.00013,2]
[419889948,1775471446297,-4088.0739572,0.00013,2]
[419889949,1775471446307,-157023.254388,0.00013,2]
[419889950,1775471446317,-250.0,0.00013,2]
[419889951,1775471446327,-200.0,0.00013,2]
[419889952,1775471446337,-151.0,0.00013,2]
[419889953,1775471446347,-8225.5747851,0.00013,2]
[419889954,1775471446357,-200.0,0.00013,2]
[419889955,1775471446367,-500.0,0.00013,2]
[419889956,1775471446376,-501.0,0.000131,2]
[419889957,1775471446386,-12465.25434082,0.0001312,2]
[419889958,1775471446396,-200.0,0.0001313,2]
[419889959,1775471446407,-925.09,0.0001317,2]
[419889960,1775471446416,-419.14981522,0.000132,2]
[419889961,1775471446426,-156.64232712,0.00013339,2]
[419889962,1775471446435,-593.06753606,0.00013421,2]
[419889963,1775471446445,-255.01404858,0.00013424,2]
[419889964,1775471446455,-150.0,0.00013424,2]
[419889965,1775471446464,-150.0,0.00013424,2]
[419889966,1775471446474,-150.0,0.00013424,2]
[419889967,1775471446484,-150.0,0.00013424,2]
[419889968,1775471446494,-174.73337526,0.00013424,2]
[419889969,1775471446504,-150.0,0.00013424,2]
[419889970,1775471446513,-150.0,0.00013424,2]
[419889971,1775471446523,-150.0,0.00013424,2]
[419889972,1775471446533,-150.0,0.00013424,2]
[419889973,1775471446542,-184.87622349,0.00013424,2]
[419889974,1775471446552,-150.0,0.00013424,2]
[419889975,1775471446561,-150.0,0.00013424,2]
[419889976,1775471446570,-150.0,0.00013424,2]
[419889977,1775471446580,-150.0,0.00013424,2]
[419889978,1775471446590,-171.81625965,0.00013424,2]
[419889979,1775471446599,-500.0,0.00013424,2]
[419889980,1775471446609,-500.0,0.00013424,2]
[419889981,1775471446618,-167.10146629,0.00013424,2]
[419889982,1775471446628,-813.0,0.00013424,2]
[419889983,1775471446638,-813.0,0.00013424,2]
[419889984,1775471446647,-813.0,0.00013424,2]
[419889986,1775471446657,-813.0,0.00013424,2]
[419889988,1775471446667,-813.0,0.00013424,2]
[419889990,1775471446677,-813.0,0.00013424,2]
[419889992,1775471446686,-813.0,0.00013424,2]
[419889993,1775471446696,-813.0,0.00013424,2]
[419889994,1775471446706,-813.0,0.00013424,2]
[419889995,1775471446716,-813.0,0.00013424,2]
[419889996,1775471446726,-813.0,0.00013424,2]
[419889997,1775471446736,-813.0,0.00013424,2]
[419889998,1775471446745,-813.0,0.00013424,2]
[419889999,1775471446755,-813.0,0.00013424,2]
[419890000,1775471446764,-813.0,0.00013424,2]
[419890001,1775471446774,-813.0,0.00013424,2]
[419890002,1775471446784,-813.0,0.00013424,2]
[419890003,1775471446793,-813.0,0.00013424,2]
[419890004,1775471446803,-813.0,0.00013424,2]
[419890005,1775471446813,-813.0,0.00013424,2]
[419890007,1775471446823,-813.0,0.00013424,2]
[419890008,1775471446833,-813.0,0.00013424,2]
[419890009,1775471446843,-813.0,0.00013424,2]
[419890010,1775471446853,-835.19151233,0.00013424,2]
[419890011,1775471446863,-200.09873022,0.00013424,2]
[419890012,1775471446872,-1419.0,0.00013424,2]
[419890013,1775471446882,-1419.0,0.00013424,2]
[419890014,1775471446892,-1419.0,0.00013424,2]
[419890015,1775471446902,-1419.0,0.00013424,2]
[419890016,1775471446912,-1419.0,0.00013424,2]
[419890017,1775471446921,-1419.0,0.00013424,2]
[419890018,1775471446931,-1419.0,0.00013424,2]
[419890019,1775471446941,-1419.0,0.00013424,2]
[419890020,1775471446951,-1419.0,0.00013424,2]
[419890021,1775471446961,-1419.0,0.00013424,2]
[419890022,1775471446971,-1419.0,0.00013424,2]
[419890023,1775471446980,-1419.0,0.00013424,2]
[419890024,1775471446990,-1419.0,0.00013424,2]
[419890025,1775471446999,-1419.0,0.00013424,2]
[419890026,1775471447009,-1419.0,0.00013424,2]
[419890027,1775471447019,-1419.0,0.00013424,2]
[419890028,1775471447029,-1419.0,0.00013424,2]
[419890029,1775471447039,-1419.0,0.00013424,2]
[419890030,1775471447049,-1419.0,0.00013424,2]
[419890031,1775471447059,-1419.0,0.00013424,2]
[419890032,1775471447068,-1419.0,0.00013424,2]
[419890033,1775471447078,-1419.0,0.00013424,2]
[419890034,1775471447088,-1419.0,0.00013424,2]
[419890035,1775471447099,-1441.07879194,0.00013424,2]
[419890036,1775471447109,-165.864685,0.00013425,2]
[419890037,1775471447119,-266.787202,0.00013425,2]
[419890038,1775471447129,-3240.0,0.00013425,2]
[419890039,1775471447139,-925.09,0.00013444,2]
[419890040,1775471447150,-12465.25434082,0.00013468,2]
[419890041,1775471447161,-151.0,0.00013488,2]
[419890042,1775471447171,-500.0,0.00013521,2]
[419890043,1775471447181,-155.235029,0.00013577,2]
[419890044,1775471447191,-151.0,0.00013655,2]
[419890045,1775471447201,-151.0,0.00013655,2]
[419890046,1775471447211,-151.0,0.00013655,2]
[419890047,1775471447221,-151.0,0.00013655,2]
[419890048,1775471447231,-151.0,0.00013655,2]
[419890049,1775471447241,-150.0,0.00013699,2]
[419890050,1775471447251,-150.0,0.00013699,2]
[419890051,1775471447261,-150.0,0.00013699,2]
[419890052,1775471447273,-150.0,0.00013699,2]
[419890053,1775471447283,-150.0,0.00013699,2]
[419890054,1775471447293,-150.0,0.00013699,2]
[419890055,1775471447303,-200.0,0.00013699,2]
[419890056,1775471447314,-166.66,0.00013699,2]
[419890057,1775471447324,-169.202825,0.00013699,2]
[419890058,1775471447334,-151.0,0.00013699,2]
[419890059,1775471447344,-151.0,0.00013699,2]
[419890060,1775471447355,-151.0,0.00013699,2]
[419890061,1775471447365,-151.0,0.00013699,2]
[419890062,1775471447375,-151.0,0.00013699,2]
[419890063,1775471447385,-151.0,0.00013699,2]
[419890064,1775471447395,-151.0,0.00013699,2]
[419890065,1775471447405,-151.0,0.00013699,2]
[419890066,1775471447416,-151.0,0.00013699,2]
[419890067,1775471447425,-151.0,0.00013699,2]
[419890068,1775471447435,-151.0,0.00013699,2]
[419890069,1775471447445,-151.0,0.00013699,2]
[419890070,1775471447455,-203.169329,0.00013699,2]
[419890071,1775471447465,-203.169329,0.00013699,2]
[419890072,1775471447475,-203.169329,0.00013699,2]
[419890073,1775471447486,-203.169329,0.00013699,2]
[419890074,1775471447496,-151.0,0.00013699,2]
[419890075,1775471447506,-151.0,0.00013699,2]
[419890076,1775471447516,-151.0,0.00013699,2]
[419890077,1775471447526,-151.0,0.00013699,2]
[419890078,1775471447536,-151.0,0.00013699,2]
[419890079,1775471447546,-151.0,0.00013699,2]
[419890080,1775471447557,-210.077951,0.00013699,2]
[419890081,1775471447567,-196.764869,0.00013699,2]
[419890082,1775471447577,-270.526497,0.00013699,2]
[419890083,1775471447587,-196.764869,0.00013699,2]
[419890084,1775471447596,-270.526497,0.00013699,2]
[419890085,1775471447606,-196.764869,0.00013699,2]
[419890086,1775471447616,-151.0,0.00013699,2]
[419890087,1775471447627,-196.764869,0.00013699,2]
[419890088,1775471447637,-270.526497,0.00013699,2]
[419890089,1775471447646,-270.526497,0.00013699,2]
[419890090,1775471447656,-151.527365,0.00013699,2]
[419890091,1775471447667,-672.179918,0.00013699,2]
[419890092,1775471447676,-672.179918,0.00013699,2]
[419890093,1775471447686,-151.527365,0.00013699,2]
[419890094,1775471447696,-672.179918,0.00013699,2]
[419890095,1775471447706,-151.527365,0.00013699,2]
[419890096,1775471447716,-672.179918,0.00013699,2]
[419890097,1775471447727,-151.527365,0.00013699,2]
[419890098,1775471447736,-336.0,0.00013699,2]
[419890099,1775471447747,-240.330246,0.00013699,2]
[419890100,1775471447757,-336.0,0.00013699,2]
[419890101,1775471447769,-240.330246,0.00013699,2]
[419890102,1775471447778,-336.0,0.00013699,2]
[419890103,1775471447788,-240.330246,0.00013699,2]
[419890104,1775471447798,-151.0,0.00013699,2]
[419890105,1775471447809,-336.0,0.00013699,2]